bitfinex/quotes_ETHUSD_20250415
["timestamp","ask_amount","ask_price","bid_price","bid_amount"]
[1744714512355,13.756087,1631.6,1631.3,12.25974]
[1744714512537,5.582,1631.6,1631.5,6.12932]
[1744714512948,5.582,1631.6,1631.4,6.12957]
[1744714513326,5.582,1631.6,1631.4,12.25912]
[1744714513527,5.582,1631.6,1631.4,6.12956]
[1744714514054,12.46484037,1631.6,1631.3,6.12995]
[1744714514247,6.12938,1631.5,1631.2,13.02669]
[1744714514455,19.42313037,1631.6,1631.3,6.13002]
[1744714514839,13.29404037,1631.6,1631.3,6.13002]
[1744714515460,19.42316037,1631.6,1631.3,6.13002]
[1744714515654,13.29404037,1631.6,1631.3,6.13002]
[1744714516158,13.29404037,1631.6,1631.3,6.12998]
[1744714516159,5.582,1631.6,1631.3,6.12998]
[1744714516360,5.582,1631.6,1631.4,12.25921]
[1744714516530,11.71106,1631.6,1631.3,6.12992]
[1744714516726,11.71106,1631.6,1631.3,12.25988]
[1744714516929,5.582,1631.6,1631.3,12.25988]
[1744714519063,11.71098,1631.6,1631.3,12.25988]
[1744714519269,11.71098,1631.6,1631.3,6.12992]
[1744714519560,11.71098,1631.6,1631.3,12.25987]
[1744714520063,11.71098,1631.6,1631.4,6.12965]
[1744714520064,5.582,1631.6,1631.4,6.12965]
[1744714520959,5.582,1631.6,1631.4,6.1296]
[1744714521161,5.582,1631.6,1631.4,12.25916]
[1744714521354,5.582,1631.6,1631.4,6.12958]
[1744714521555,5.582,1631.6,1631.4,12.25916]
[1744714522972,5.582,1631.6,1631.5,6.12932]
[1744714523266,5.582,1631.6,1631.5,6.90442]
[1744714523465,0.4003891,1631.8,1631.6,6.12878]
[1744714523658,0.4003891,1631.8,1631.6,6.12877]
[1744714525981,0.4003891,1631.8,1631.6,12.2576]
[1744714526149,0.4003891,1631.8,1631.6,6.12877]
[1744714526543,8.42806001,1631.8,1631.4,9.15422095]
[1744714526850,6.12867,1631.7,1631.4,12.25919]
[1744714527378,6.12867,1631.7,1631.4,6.12959]
[1744714527542,6.12867,1631.7,1631.4,12.25919]
[1744714527749,6.12867,1631.7,1631.4,6.12959]
[1744714528482,6.938,1631.6,1631.3,6.92075]
[1744714528677,13.06715,1631.6,1631.3,6.92075]
[1744714528882,13.06715,1631.6,1631.3,6.12995]
[1744714529677,6.12934,1631.5,1631.2,3.84801095]
[1744714529884,6.92654,1631.3,1631.1,3.0]
[1744714530385,13.05677,1631.3,1631.1,3.0]
[1744714530743,6.92653,1631.3,1631.1,3.0]
[1744714531158,13.05681,1631.3,1631.1,3.0]
[1744714531554,6.92652,1631.3,1631.1,3.0]
[1744714531759,6.92651,1631.3,1631.1,3.0]
[1744714532470,6.12972,1631.4,1631.1,9.13074]
[1744714532786,12.25959,1631.4,1631.1,6.13074]
[1744714532962,6.13008,1631.3,1631.0,12.26224]
[1744714536191,0.7631,1631.2,1630.9,13.024]
[1744714536567,6.89379,1631.2,1630.9,6.13148]
[1744714536779,6.13091,1631.1,1630.9,3.0]
[1744714536984,6.13122,1631.0,1630.7,12.19222]
[1744714537292,6.13122,1631.0,1630.6,13.04208]
[1744714537293,6.93361,1630.9,1630.6,13.04208]
[1744714537487,6.93361,1630.9,1630.6,6.90949]
[1744714538109,6.13207,1630.8,1630.5,6.13303]
[1744714538454,6.13207,1630.8,1630.5,12.26599]
[1744714538701,6.13207,1630.8,1630.5,6.13296]
[1744714539771,12.26422,1630.8,1630.5,6.13296]
[1744714539971,6.13207,1630.8,1630.5,12.26592]
[1744714540170,13.06536,1630.9,1630.5,12.26593]
[1744714540372,13.06536,1630.9,1630.5,13.87568309]
[1744714541057,6.13203,1630.8,1630.5,7.74271309]
[1744714541397,12.26423,1630.8,1630.5,7.74271309]
[1744714541573,12.26423,1630.8,1630.5,6.13296]
[1744714542796,12.26415,1630.8,1630.5,6.13296]
[1744714543480,13.06534,1630.9,1630.6,6.1327]
[1744714544090,6.13198,1630.8,1630.5,6.13296]
[1744714544280,6.13198,1630.8,1630.5,12.26592]
[1744714546471,6.13206,1630.8,1630.5,6.13296]
[1744714546873,6.13206,1630.8,1630.5,12.26594]
[1744714547090,6.9336,1630.9,1630.6,6.13258]
[1744714547285,6.9336,1630.9,1630.6,12.26516]
[1744714547481,6.90832,1631.0,1630.6,3.80421095]
[1744714547685,6.90832,1631.0,1630.7,6.13197]
[1744714547862,7.65747,1631.1,1630.7,6.13233]
[1744714548063,7.65747,1631.1,1630.8,6.13175]
[1744714548064,11.70893,1631.1,1630.8,6.13175]
[1744714548498,11.70893,1631.1,1630.8,12.26352]
[1744714548693,5.578,1631.1,1630.9,6.13153]
[1744714548867,5.578,1631.1,1630.9,12.263]
[1744714549067,13.07517,1631.3,1631.0,6.1312]
[1744714549289,14.940687,1631.3,1631.0,6.1312]
[1744714549900,14.940687,1631.3,1630.9,6.13147]
[1744714549901,6.13049,1631.2,1630.9,6.13147]
[1744714550101,6.13049,1631.2,1630.8,15.28833095]
[1744714550584,2.680317,1631.3,1630.7,6.91387]
[1744714550585,6.89038,1631.0,1630.7,6.91387]
[1744714550791,6.89038,1631.0,1630.7,13.04608]
[1744714551118,0.7591,1631.0,1630.8,6.13189]
[1744714551493,13.02097,1631.1,1630.8,6.13189]
[1744714552920,6.88999,1631.1,1630.8,6.13189]
[1744714553119,6.88999,1631.1,1630.8,12.26375]
[1744714553330,0.7591,1631.2,1630.9,6.13143]
[1744714553533,6.88973,1631.2,1630.9,12.26286]
[1744714553724,6.13086,1631.1,1630.8,6.13184]
[1744714554035,12.26187,1631.1,1630.8,6.13184]
[1744714554233,6.13086,1631.1,1630.8,6.13184]
[1744714554828,6.13086,1631.1,1630.8,12.26369]
[1744714555034,6.13086,1631.1,1630.8,6.13184]
[1744714555402,6.13086,1631.1,1630.8,12.26368]
[1744714555944,6.13086,1631.1,1630.8,6.13184]
[1744714556101,6.13086,1631.1,1630.8,12.26369]
[1744714556619,6.13056,1631.2,1630.9,6.13156]
[1744714556819,6.13017,1631.3,1631.0,6.95421]
[1744714556820,12.26034,1631.3,1631.0,6.95421]
[1744714557028,6.13046,1631.2,1631.0,6.95421]
[1744714557904,6.13046,1631.2,1630.8,11.43903686]
[1744714558109,6.13046,1631.2,1630.8,17.57093686]
[1744714558110,6.13084,1631.1,1630.8,17.57093686]
[1744714559752,6.89166,1631.2,1630.9,6.13153]
[1744714560044,6.89166,1631.2,1630.9,7.27535769]
[1744714560221,0.7612,1631.2,1631.0,6.13116]
[1744714560424,0.7664,1631.3,1631.1,6.13083]
[1744714560618,6.89668,1631.3,1631.0,6.13116]
[1744714560855,13.02706,1631.3,1631.0,6.13116]
[1744714561158,0.7664,1631.5,1631.1,0.7605]
[1744714561360,6.3414,1631.5,1631.1,6.89105]
[1744714561518,0.7664,1631.7,1631.4,6.12942]
[1744714561713,0.7664,1631.7,1631.5,6.12914]
[1744714561944,12.1035991,1631.8,1631.4,3.78191095]
[1744714561945,5.9753891,1631.8,1631.4,3.78191095]
[1744714562152,5.9753891,1631.8,1631.6,6.1288]
[1744714562457,5.9753891,1631.8,1631.6,12.25763]
[1744714562659,5.9753891,1631.8,1631.7,6.12857]
[1744714562821,0.4003891,1631.8,1631.7,6.12857]
[1744714563224,0.4003891,1631.8,1631.6,16.11339095]
[1744714563545,0.4003891,1631.8,1631.7,6.12857]
[1744714565066,0.4003891,1631.8,1631.6,8.0850598]
[1744714565230,0.4003891,1631.8,1631.6,14.2138498]
[1744714565633,0.4003891,1631.8,1631.7,6.12857]
[1744714568927,0.4003891,1631.8,1631.7,9.12857]
[1744714569109,0.4003891,1631.8,1631.7,10.68239908]
[1744714572121,0.4003891,1631.8,1631.7,6.12857]
[1744714574117,0.4003891,1631.8,1631.6,6.88597]
[1744714574296,0.4003891,1631.8,1631.7,6.12857]
[1744714577021,0.4003891,1631.8,1631.6,9.91057095]
[1744714577433,0.4003891,1631.8,1631.6,16.03938095]
[1744714578224,0.4003891,1631.8,1631.7,6.12857]
[1744714579230,0.4003891,1631.8,1631.6,12.25757]
[1744714579928,0.4003891,1631.8,1631.7,6.12857]
[1744714580823,0.4003891,1631.8,1631.6,6.12876]
[1744714581024,0.4003891,1631.8,1631.6,12.25762]
[1744714583633,1.13061001,1631.8,1631.6,6.12876]
[1744714583926,7.25894001,1631.8,1631.5,15.25839]
[1744714584228,9.1e-06,1631.8,1631.7,9.90857]
[1744714584774,9.1e-06,1631.8,1631.7,16.02557]
[1744714587844,9.1e-06,1631.8,1631.7,16.32317991]
[1744714588808,9.1e-06,1631.8,1631.7,15.47557]
[1744714589141,9.1e-06,1631.8,1631.7,18.55134809]
[1744714594761,9.1e-06,1631.8,1631.7,19.10134809]
[1744714595136,9.1e-06,1631.8,1631.7,18.55134809]
[1744714600757,9.1e-06,1631.8,1631.7,17.77134809]
[1744714601866,9.1e-06,1631.8,1631.7,14.77134809]
[1744714602067,9.1e-06,1631.8,1631.7,11.69557]
[1744714602266,9.1e-06,1631.8,1631.7,14.69557]
[1744714605747,9.1e-06,1631.8,1631.7,9.12857]
[1744714609940,9.1e-06,1631.8,1631.7,9.18984662]
[1744714612178,9.1e-06,1631.8,1631.7,10.00244662]
[1744714612404,9.1e-06,1631.8,1631.7,12.53090438]
[1744714612547,9.1e-06,1631.8,1631.7,12.46962776]
[1744714620999,9.1e-06,1631.8,1631.7,11.65702776]
[1744714624200,9.1e-06,1631.8,1631.7,11.71829928]
[1744714624503,0.05,1632.4,1632.3,6.12632]
[1744714624796,0.05,1632.4,1632.3,12.15093095]
[1744714625185,0.05,1632.4,1632.2,6.12651]
[1744714625384,0.7804,1632.3,1632.1,6.12703]
[1744714625585,0.7804,1632.3,1632.0,12.15193095]
[1744714625770,0.695638,1632.3,1632.1,6.12707]
[1744714625971,0.7843,1632.2,1632.1,9.12707]
[1744714626171,0.7843,1632.2,1632.1,3.0]
[1744714626384,0.7843,1632.2,1632.0,15.27925095]
[1744714627278,0.7843,1632.2,1632.0,9.15193095]
[1744714627694,6.9111,1632.2,1631.9,9.12771]
[1744714627993,0.7633,1632.1,1631.9,9.12771]
[1744714629702,6.89048,1632.1,1631.8,9.15274095]
[1744714629905,0.7954,1632.0,1631.8,6.12813]
[1744714630802,6.92288,1632.0,1631.8,3.0]
[1744714631005,8.228076,1632.0,1631.7,12.18853]
[1744714631223,6.94,1631.9,1631.7,6.06]
[1744714631426,0.812,1631.9,1631.7,12.18855]
[1744714631631,0.812,1631.9,1631.7,6.06]
[1744714631997,6.93995,1631.9,1631.7,6.06]
[1744714632400,0.812,1631.8,1631.7,9.06]
[1744714632622,0.812,1631.8,1631.7,3.0]
[1744714633301,0.812,1631.8,1631.5,9.52253174]
[1744714633503,0.7519,1631.6,1631.4,15.28381095]
[1744714633839,0.7519,1631.6,1631.5,3.0]
[1744714634344,0.7519,1631.6,1631.4,15.28381095]
[1744714635800,0.7519,1631.6,1631.4,3.02461095]
[1744714636001,0.7959,1631.4,1630.9,3.02461095]
[1744714636202,0.7959,1631.2,1630.9,9.61915166]
[1744714636435,0.7959,1631.2,1631.0,6.1312]
[1744714636639,6.92644,1631.2,1630.9,9.15587095]
[1744714636932,6.13084,1631.1,1630.9,3.02461095]
[1744714637333,13.749844,1631.2,1630.9,3.02461095]
[1744714640124,0.8168,1631.1,1630.9,3.02461095]
[1744714640351,0.8168,1631.1,1630.9,9.15619095]
[1744714642253,0.8168,1631.1,1630.9,6.13158]
[1744714642477,6.94784,1631.1,1630.8,6.13193]
[1744714643126,6.94784,1631.1,1630.8,12.26375]
[1744714643452,6.94784,1631.1,1630.8,12.26365]
[1744714643761,6.94784,1631.1,1630.8,6.13182]
[1744714644158,6.94784,1631.1,1630.8,12.26366]
[1744714644725,0.8168,1631.1,1630.9,6.13154]
[1744714644930,0.8168,1631.1,1631.0,6.1312]
[1744714645127,0.8168,1631.1,1630.9,15.28756095]
[1744714645460,0.8168,1631.1,1630.9,9.15602095]
[1744714646226,6.90349,1631.3,1631.0,6.1312]
[1744714646429,14.280269,1631.3,1631.0,6.1312]
[1744714647138,0.7733,1631.3,1631.2,6.13045]
[1744714647347,0.8272,1631.7,1631.4,6.12969]
[1744714647632,0.8272,1631.7,1631.6,9.15356095]
[1744714648678,0.8272,1631.7,1631.4,9.15423095]
[1744714648679,6.95588,1631.7,1631.4,9.15423095]
[1744714648881,6.95588,1631.7,1631.3,9.15458095]
[1744714648882,6.12896,1631.6,1631.3,9.15458095]
[1744714649580,6.12896,1631.6,1631.3,15.28454095]
[1744714649779,6.12896,1631.6,1631.3,9.15457095]
[1744714650065,6.12959,1631.5,1631.2,9.58505326]
[1744714650262,13.567702,1631.5,1631.2,9.13031]
[1744714650945,6.1297,1631.4,1631.2,3.0]
[1744714651151,0.7837,1631.3,1631.2,3.0]
[1744714652536,0.7837,1631.3,1631.1,9.15530095]
[1744714652936,0.7837,1631.3,1631.1,15.28599095]
[1744714653283,0.7837,1631.3,1631.1,3.02461095]
[1744714653485,0.7837,1631.3,1631.1,9.15543095]
[1744714654282,1.475045,1631.3,1631.1,9.15543095]
[1744714654689,1.475045,1631.3,1631.1,3.02461095]
[1744714654690,7.605175,1631.3,1631.1,3.02461095]
[1744714655057,7.605175,1631.3,1631.0,6.13109]
[1744714655257,7.605175,1631.3,1631.0,12.26219]
[1744714656284,6.91383,1631.3,1631.0,12.26219]
[1744714656437,0.7837,1631.3,1631.1,6.13078]
[1744714656642,0.7837,1631.3,1631.0,12.26217]
[1744714657383,6.9138,1631.3,1631.0,6.13108]
[1744714658076,6.9138,1631.3,1631.0,12.26216]
[1744714658974,0.7837,1631.3,1631.1,6.13078]
[1744714659283,0.7837,1631.3,1631.1,6.13073]
[1744714659577,0.7837,1631.3,1631.1,6.13071]
[1744714659747,0.7837,1631.3,1631.1,12.26142]
[1744714659948,0.7837,1631.3,1631.1,6.13071]
[1744714661559,0.7837,1631.3,1631.1,15.28604095]
[1744714661951,0.7837,1631.3,1631.1,15.28603095]
[1744714662378,0.7837,1631.3,1631.1,9.15532095]
[1744714662982,0.7837,1631.3,1631.1,15.28602095]
[1744714663360,6.12983,1631.4,1631.1,15.28602095]
[1744714663548,6.12983,1631.4,1631.1,9.15531095]
[1744714664362,12.25968,1631.4,1631.1,9.15531095]
[1744714665184,6.13009,1631.3,1631.1,3.02461095]
[1744714666489,7.5621662,1631.4,1631.1,9.15544095]
[1744714666694,7.5621662,1631.4,1631.1,3.02461095]
[1744714666989,6.13012,1631.3,1631.1,3.02461095]
[1744714667490,6.13012,1631.3,1631.0,12.26218]
[1744714668560,6.12983,1631.4,1631.1,6.13073]
[1744714669115,6.12983,1631.4,1631.1,12.26146]
[1744714669321,6.12983,1631.4,1631.1,6.13073]
[1744714669817,6.12983,1631.4,1631.1,6.13072]
[1744714670037,13.01402,1631.5,1631.2,6.13044]
[1744714670240,2.056502,1631.5,1631.2,6.13045]
[1744714670401,6.3547,1631.7,1631.4,6.1297]
[1744714670718,0.7957,1631.7,1631.5,6.12919]
[1744714670892,0.7957,1631.7,1631.5,12.2584]
[1744714671218,13.05517,1631.9,1631.6,6.12886]
[1744714671423,6.12831,1631.8,1631.5,12.2584]
[1744714671792,6.92721,1631.9,1631.6,6.12878]
[1744714672117,6.92721,1631.9,1631.6,12.2576]
[1744714673720,6.92721,1631.9,1631.6,6.12878]
[1744714673890,6.92721,1631.9,1631.5,16.09317095]
[1744714674090,6.1282,1631.8,1631.5,16.54143529]
[1744714674290,2.047921,1631.9,1631.6,12.25784]
[1744714674824,2.047921,1631.9,1631.7,6.12853]
[1744714674994,0.7993,1631.9,1631.7,6.12853]
[1744714675523,6.3221,1632.0,1631.8,12.2562]
[1744714675825,6.88986,1632.2,1631.9,6.12782]
[1744714676028,0.7631,1632.2,1632.0,6.12729]
[1744714676227,10.17608,1632.4,1631.9,3.02461095]
[1744714676228,4.8558,1632.4,1632.1,12.25414]
[1744714676596,10.9818,1632.4,1632.1,6.12707]
[1744714676825,4.8558,1632.4,1632.2,6.12661]
[1744714677732,10.98182,1632.4,1632.1,6.127]
[1744714677918,6.98182,1632.4,1632.1,6.127]
[1744714678531,13.10804,1632.4,1632.1,6.127]
[1744714680110,6.98182,1632.4,1632.1,6.127]
[1744714680317,13.10801,1632.4,1632.1,6.127]
[1744714681602,6.12654,1632.3,1631.9,9.90291095]
[1744714681802,2.65640719,1632.4,1631.8,6.12807]
[1744714681803,6.12722,1632.1,1631.8,6.12807]
[1744714682542,12.25444,1632.1,1631.8,6.12807]
[1744714682742,6.12722,1632.1,1631.8,6.12807]
[1744714683931,12.25449,1632.1,1631.8,6.12807]
[1744714684245,6.91259,1632.2,1631.8,6.12807]
[1744714684750,6.12718,1632.1,1631.8,6.12807]
[1744714685056,12.25448,1632.1,1631.8,8.342186]
[1744714687248,6.12718,1632.1,1631.8,8.342186]
[1744714687447,6.12718,1632.1,1631.8,14.470266]
[1744714687949,13.03955,1632.2,1631.9,6.12781]
[1744714691613,6.12728,1632.1,1631.8,8.342186]
[1744714692043,6.12728,1632.1,1631.8,14.470266]
[1744714692337,6.12728,1632.1,1631.8,14.470276]
[1744714692921,6.12728,1632.1,1631.8,8.342186]
[1744714693113,6.12728,1632.1,1631.8,14.470286]
[1744714694141,13.0395,1632.2,1631.9,6.12781]
[1744714694751,6.12707,1632.1,1631.8,6.12807]
[1744714695073,6.12763,1632.0,1631.7,13.01311]
[1744714695259,6.12763,1632.0,1631.8,3.0]
[1744714695421,6.12713,1632.1,1631.8,3.0]
[1744714695752,12.25436,1632.1,1631.8,9.1281]
[1744714697466,2.08975,1632.2,1631.9,6.12773]
[1744714697665,0.7858,1632.2,1631.9,6.12773]
[1744714697863,0.7858,1632.2,1632.0,12.25488]
[1744714698021,0.7858,1632.2,1632.0,6.12744]
[1744714698449,6.91251,1632.2,1632.0,6.12744]
[1744714698665,6.91251,1632.2,1631.9,6.12763]
[1744714698869,6.91251,1632.2,1631.9,12.25526]
[1744714700233,6.91251,1632.2,1631.9,12.25534]
[1744714700455,13.03937,1632.2,1631.9,6.12763]
[1744714701567,0.7858,1632.2,1632.0,6.12744]
[1744714701863,6.12671,1632.2,1631.9,12.25535]
[1744714702064,18.60833,1632.3,1632.0,6.12742]
[1744714702253,20.474163,1632.3,1632.0,6.12742]
[1744714702455,6.12671,1632.2,1632.0,6.12742]
[1744714702853,6.12671,1632.2,1631.9,12.25535]
[1744714704866,12.48165,1632.3,1632.0,6.12733]
[1744714705056,0.05,1632.4,1632.0,6.12733]
[1744714705057,0.05,1632.4,1632.2,6.12662]
[1744714706566,6.17596,1632.4,1632.1,9.76439395]
[1744714706766,6.17596,1632.4,1632.1,9.15166095]
[1744714707646,6.17596,1632.4,1632.1,15.27871095]
[1744714708169,0.05,1632.4,1632.2,6.12669]
[1744714709337,0.05,1632.4,1632.2,12.25326]
[1744714709667,0.05,1632.4,1632.2,6.12657]
[1744714710938,0.05,1632.4,1632.3,6.12632]
[1744714711133,0.05,1632.4,1632.3,9.97843095]
[1744714711382,0.05,1632.4,1632.3,12.97843095]
[1744714712566,0.05,1632.4,1632.3,18.52343095]
[1744714712741,0.05,1632.4,1632.3,12.97843095]
[1744714712940,0.05,1632.4,1632.3,15.04170676]
[1744714713143,0.05,1632.4,1632.3,5.89077581]
[1744714713337,0.05,1632.4,1632.1,6.92225]
[1744714713534,0.05,1632.4,1632.2,9.12666]
[1744714713949,0.05,1632.4,1632.0,9.15204095]
[1744714713950,6.95843,1632.3,1632.0,9.15204095]
[1744714714154,6.95843,1632.3,1632.0,15.34064774]
[1744714714353,6.95843,1632.3,1632.0,15.27938095]
[1744714714780,6.95843,1632.3,1632.0,9.15195095]
[1744714715102,6.12678,1632.2,1631.9,13.05081]
[1744714715286,8.271747,1632.3,1632.0,6.12741]
[1744714715584,13.10398,1632.4,1632.0,6.12731]
[1744714715785,13.10399,1632.4,1632.1,6.12676]
[1744714716091,6.97785,1632.4,1632.1,6.12676]
[1744714716784,6.97785,1632.4,1632.1,12.25369]
[1744714716951,6.97785,1632.4,1632.1,12.25371]
[1744714717568,6.97785,1632.4,1632.1,12.25373]
[1744714717989,6.97785,1632.4,1632.1,12.25372]
[1744714718289,0.8519,1632.4,1632.2,6.12669]
[1744714718851,0.8519,1632.4,1632.1,13.78155409]
[1744714719056,6.97787,1632.4,1632.1,6.12676]
[1744714720192,6.97787,1632.4,1632.1,12.25372]
[1744714720864,6.97787,1632.4,1632.1,6.12676]
[1744714721973,6.97787,1632.4,1632.0,15.27932095]
[1744714722601,6.12634,1632.3,1632.0,15.27932095]
[1744714722786,6.12634,1632.3,1632.0,16.88678305]
[1744714724095,13.10396,1632.4,1632.1,6.12698]
[1744714724899,6.97787,1632.4,1632.1,12.25396]
[1744714725059,0.8519,1632.4,1632.2,6.12651]
[1744714725494,6.97785,1632.4,1632.2,6.12651]
[1744714726913,0.8519,1632.4,1632.2,6.12651]
[1744714727079,0.05,1632.4,1632.2,6.12651]
[1744714727984,0.05,1632.4,1632.2,12.25311]
[1744714728186,0.05,1632.4,1632.2,13.561101]
[1744714729710,0.05,1632.4,1632.2,7.434501]
[1744714730088,0.05,1632.4,1632.2,6.12651]
[1744714731322,0.05,1632.4,1632.2,12.2531]
[1744714732013,0.05,1632.4,1632.3,6.12632]
[1744714732168,0.05,1632.4,1632.3,6.89332]
[1744714732373,0.05,1632.4,1632.3,9.95457448]
[1744714732569,0.05,1632.4,1632.3,12.47779402]
[1744714732817,0.05,1632.4,1632.3,12.41653954]
[1744714734125,0.05,1632.4,1632.3,11.64953954]
[1744714734275,0.05,1632.4,1632.3,3.0]
[1744714737478,0.05,1632.4,1632.3,9.12632]
[1744714737819,0.05,1632.4,1632.3,6.12632]
[1744714740028,0.05,1632.4,1632.3,6.18758153]
[1744714741593,0.05,1632.4,1632.3,6.12632]
[1744714742726,0.05,1632.4,1632.3,6.18757634]
[1744714742925,0.05,1632.4,1632.3,7.66018873]
[1744714743080,0.05,1632.4,1632.3,7.72144507]
[1744714743584,0.05,1632.4,1632.3,7.66018873]
[1744714743783,0.05,1632.4,1632.3,7.72144507]
[1744714747359,0.8529,1632.4,1632.3,6.12632]
[1744714748117,0.05,1632.4,1632.3,6.12632]
[1744714748850,0.05,1632.4,1632.2,6.1265]
[1744714749135,0.05,1632.4,1632.3,6.18758007]
[1744714749312,0.05,1632.4,1632.3,6.89462]
[1744714749510,0.05,1632.4,1632.3,12.11184409]
[1744714753547,0.05,1632.4,1632.3,8.34354409]
[1744714753759,0.05,1632.4,1632.3,6.12632]
[1744714753922,0.05,1632.4,1632.2,15.27769095]
[1744714754261,0.05,1632.4,1632.3,6.12632]
[1744714754563,0.05,1632.4,1632.2,15.27769095]
[1744714754770,0.05,1632.4,1632.2,9.15111095]
[1744714755455,0.826,1632.4,1632.2,9.15111095]
[1744714756255,6.952,1632.4,1632.1,12.25391]
[1744714756675,0.826,1632.4,1632.2,6.12668]
[1744714757354,6.95202,1632.4,1632.1,6.12695]
[1744714757560,13.07811,1632.4,1632.1,6.12695]
[1744714758332,6.95202,1632.4,1632.1,6.12695]
[1744714758538,6.95202,1632.4,1632.1,12.2539]
[1744714760353,6.95202,1632.4,1632.1,14.1278807]
[1744714760862,0.05,1632.4,1632.3,6.12632]
[1744714767278,0.8499,1632.4,1632.2,9.15112095]
[1744714767985,0.8499,1632.4,1632.2,6.12651]
[1744714768373,0.8499,1632.4,1632.3,6.12632]
[1744714768572,0.8499,1632.4,1632.2,12.25309]
[1744714768748,0.8499,1632.4,1632.2,6.12651]
[1744714769984,0.8499,1632.4,1632.2,12.2531]
[1744714770871,0.8499,1632.4,1632.2,6.12651]
[1744714771775,0.05,1632.4,1632.2,6.12651]
[1744714771975,0.05,1632.4,1632.3,6.12632]
[1744714772177,0.05,1632.4,1632.2,6.12651]
[1744714772559,0.05,1632.4,1632.2,12.25311]
[1744714773273,0.05,1632.4,1632.2,6.12651]
[1744714773473,0.05,1632.4,1632.3,6.12632]
[1744714773875,0.05,1632.4,1632.2,12.2531]
[1744714774880,0.05,1632.4,1632.3,6.12632]
[1744714779384,0.05,1632.4,1632.3,8.09631591]
[1744714779590,0.05,1632.4,1632.3,9.41691496]
[1744714780457,0.05,1632.4,1632.3,9.47816877]
[1744714781197,0.05,1632.4,1632.3,12.47816875]
[1744714781514,0.05,1632.4,1632.3,13.19901496]
[1744714781716,0.05,1632.4,1632.3,19.80901496]
[1744714783110,0.05,1632.4,1632.3,19.25901496]
[1744714783317,0.05,1632.4,1632.3,20.94210328]
[1744714789209,0.05,1632.4,1632.3,21.49210328]
[1744714789415,1e-05,1632.4,1632.3,21.49210328]
[1744714791931,1e-05,1632.4,1632.3,17.93841591]
[1744714792098,1e-05,1632.4,1632.3,20.94210328]
[1744714799304,1e-05,1632.4,1632.3,21.49210328]
[1744714799901,0.7625,1632.9,1632.4,9.93354]
[1744714800268,0.7625,1632.9,1632.8,6.12444]
[1744714800401,6.2945,1633.1,1633.0,6.12369]
[1744714800601,0.7625,1633.1,1633.0,6.12369]
[1744714801625,0.7625,1633.1,1632.9,9.12755737]
[1744714801801,6.12419,1632.9,1632.6,6.12512]
[1744714802002,6.89326,1632.8,1632.5,6.12542]
[1744714802338,13.01882,1632.7,1632.3,12.18622]
[1744714802515,0.7941,1632.6,1632.4,6.12593]
[1744714802711,6.9193,1632.6,1632.3,12.18622]
[1744714802911,0.7941,1632.4,1632.3,6.06]
[1744714803718,0.7941,1632.4,1632.3,12.18632]
[1744714804002,0.7504,1632.5,1632.4,6.12583]
[1744714804536,0.7504,1632.5,1632.3,6.06]
[1744714804716,6.87611,1632.5,1632.3,6.06]
[1744714805521,0.7504,1632.5,1632.3,6.06]
[1744714805920,0.7504,1632.5,1632.3,12.1862]
[1744714806117,0.7504,1632.5,1632.3,12.18614]
[1744714806440,0.7504,1632.5,1632.4,6.12594]
[1744714807516,6.12381,1633.0,1632.6,6.12482]
[1744714807708,6.12381,1633.0,1632.6,12.24989]
[1744714807709,12.24787,1633.0,1632.6,12.24989]
[1744714808009,0.8114,1632.9,1632.4,3.00368737]
[1744714808209,6.12476,1632.8,1632.4,15.25525737]
[1744714808409,6.12476,1632.8,1632.5,6.12551]
[1744714808614,6.93552,1632.9,1632.6,6.12515]
[1744714808832,0.8114,1632.9,1632.7,6.12481]
[1744714809349,0.8114,1632.9,1632.8,6.12444]
[1744714810644,0.7909,1633.1,1632.8,12.24888]
[1744714810815,2.094626,1633.1,1632.8,12.24888]
[1744714811016,8.217946,1633.1,1632.8,6.12444]
[1744714811441,8.217946,1633.1,1632.7,6.12478]
[1744714811635,6.12417,1632.9,1632.6,6.12509]
[1744714811813,0.612417,1632.8,1632.5,6.12545]
[1744714812014,0.7858,1632.7,1632.5,6.12545]
[1744714812729,0.7858,1632.7,1632.4,9.12955737]
[1744714812730,6.91073,1632.7,1632.4,9.12955737]
[1744714813230,6.91073,1632.7,1632.4,15.25537737]
[1744714813426,6.1252,1632.6,1632.3,18.31244]
[1744714813631,6.1252,1632.6,1632.3,12.1862]
[1744714813848,0.763,1632.5,1632.3,12.1862]
[1744714814051,6.88865,1632.5,1632.3,6.06]
[1744714814262,0.763,1632.5,1632.3,12.18632]
[1744714814444,0.763,1632.5,1632.3,15.18987737]
[1744714814631,0.763,1632.7,1632.5,6.12531]
[1744714814834,1.451756,1632.7,1632.4,6.12581]
[1744714815354,7.576576,1632.7,1632.4,6.12581]
[1744714816868,7.576576,1632.7,1632.3,15.18990737]
[1744714817024,6.88855,1632.6,1632.3,6.06]
[1744714817223,13.0141,1632.6,1632.3,6.06]
[1744714817523,6.12594,1632.4,1632.3,6.06]
[1744714817716,0.7996,1632.4,1632.3,6.06]
[1744714818141,6.2907,1632.6,1632.5,6.12557]
[1744714818329,0.7657,1632.6,1632.5,6.12557]
[1744714819131,0.7657,1632.6,1632.4,6.12576]
[1744714819448,0.7657,1632.6,1632.4,12.25159]
[1744714819653,0.7657,1632.6,1632.4,6.12576]
[1744714820756,0.7657,1632.6,1632.4,12.25158]
[1744714821126,0.7657,1632.6,1632.5,6.12557]